[Event "WYCC U18 Open 2019"]
[Site "Mumbai"]
[Date "2019.10.07"]
[Round "7.8"]
[White "Aditya Mittal"]
[Black "Zarubitski, Viachaslau"]
[Result "1/2-1/2"]
[ECO "D94"]
[WhiteElo "2430"]
[BlackElo "2435"]
[Annotator "ChessBase"]
[PlyCount "209"]
[EventDate "2019.10.02"]
[EventType "swiss"]
[EventCountry "IND"]
[SourceTitle "playchess.com"]
[Source "ChessBase"]
[SourceQuality "1"]
[TimeControl "40/5400+30:1800+30"]

1. d4 {[%emt 0:00:00]} d5 {[%emt 0:00:00]} 2. c4 {[%emt 0:00:01]} c6 {[%emt 0:00:00]} 3. Nf3 {[%emt 0:00:03]} Nf6 {[%emt 0:00:00]} 4. e3 {[%emt 0:00:07]} g6 {[%emt 0:02:10]} 5. Bd3 {[%emt 0:04:50]} Bg7 {[%emt 0:00:22]} 6. O-O {[%emt 0:01:36]} O-O {[%emt 0:00:21]} 7. Nc3 {[%emt 0:03:51]} Bg4 {[%emt 0:00:34]} 8. h3 {[%emt 0:05:09]} Bxf3 {[%emt 0:00:50]} 9. Qxf3 {[%emt 0:00:09]} Re8 {[%emt 0:00:45]} 10. Rd1 {[%emt 0:04:19]} e6 {[%emt 0:10:12]} 11. b3 {[%emt 0:07:31]} Nbd7 {[%emt 0:00:05]} 12. Bb2 {[%emt 0:00:19]} Qe7 {[%emt 0:03:59]} 13. Qe2 {[%emt 0:04:41]} dxc4 {[%emt 0:31:54]} 14. Bxc4 {[%emt 0:02:51]} e5 {[%emt 0:06:53]} 15. d5 {[%emt 0:00:56]} cxd5 {[%emt 0:01:45]} 16. Nxd5 {[%emt 0:02:43]} Nxd5 {[%emt 0:00:08]} 17. Bxd5 {[%emt 0:00:20]} Nb6 {[%emt 0:00:18]} 18. e4 {[%emt 0:04:51]} Rac8 {[%emt 0:01:37]} 19. a4 {[%emt 0:04:49]} Nxd5 {[%emt 0:16:38]} 20. Rxd5 {[%emt 0:00:51]} Red8 {[%emt 0:03:13]} 21. Rad1 {[%emt 0:00:58]} Rxd5 {[%emt 0:00:41]} 22. Rxd5 {[%emt 0:00:16]} Bf6 {[%emt 0:12:54]} 23. Qd3 {[%emt 0:02:19]} Rc7 {[%emt 0:00:15]} 24. g3 {[%emt 0:01:14]} h5 {[%emt 0:00:14]} 25. h4 {[%emt 0:01:01]} a6 {[%emt 0:00:26]} 26. Kg2 {[%emt 0:01:00]} Kh7 {[%emt 0:00:04]} 27. Bc3 {[%emt 0:01:44]} Qe6 {[%emt 0:04:27]} 28. Ba5 {[%emt 0:06:03]} Rc6 {[%emt 0:00:00]} 29. Rd7 {[%emt 0:01:07]} b6 {[%emt 0:00:47]} 30. Bd2 {[%emt 0:01:26]} Kg7 {[%emt 0:01:03]} 31. Qd5 {[%emt 0:00:59]} Qxd5 {[%emt 0:00:25]} 32. exd5 {[%emt 0:00:34]} Rc2 {[%emt 0:00:22]} 33. Be3 {[%emt 0:01:03]} Rb2 {[%emt 0:00:20]} 34. Bxb6 {[%emt 0:03:21]} Rxb3 {[%emt 0:00:02]} 35. a5 {[%emt 0:00:12]} e4 {[%emt 0:00:24]} 36. Ra7 {[%emt 0:07:18]} Rd3 {[%emt 0:00:12]} 37. Rxa6 {[%emt 0:00:06]} Rxd5 {[%emt 0:00:03]} 38. Ra8 {[%emt 0:00:19]} Rd3 {[%emt 0:02:41]} 39. Kf1 {[%emt 0:20:47]} Bd4 {[%emt 0:00:24]} 40. Rd8 {[%emt 0:01:46]} Bxb6 {[%emt 0:00:30]} 41. Rd6 Rd4 42. Rxd4 {[%emt 0:30:33]} Bxa5 {[%emt 0:30:37]} 43. Rd5 {[%emt 0:00:00]} Bc3 {[%emt 0:00:00]} 44. Rc5 {[%emt 0:00:00]} Bb2 {[%emt 0:00:00]} 45. Rb5 {[%emt 0:00:00]} Bc3 {[%emt 0:00:00]} 46. Rb7 {[%emt 0:00:00]} Kf6 {[%emt 0:00:00]} 47. Ke2 {[%emt 0:00:00]} Ke6 {[%emt 0:00:00]} 48. Rb6+ {[%emt 0:00:00]} Ke5 {[%emt 0:00:00]} 49. Rb8 {[%emt 0:00:00]} Bd4 {[%emt 0:00:00]} 50. Re8+ {[%emt 0:00:00]} Kf5 {[%emt 0:00:00]} 51. Re7 {[%emt 0:00:00]} f6 {[%emt 0:00:00]} 52. Rb7 {[%emt 0:00:00]} Ke5 {[%emt 0:00:00]} 53. Rc7 {[%emt 0:00:00]} Ke6 {[%emt 0:00:00]} 54. Rc6+ {[%emt 0:00:00]} Ke5 {[%emt 0:00:00]} 55. Ra6 {[%emt 0:00:00]} Kf5 {[%emt 0:00:00]} 56. Ra4 {[%emt 0:00:00]} Ke5 {[%emt 0:00:00]} 57. Rc4 {[%emt 0:00:00]} Kd5 {[%emt 0:00:00]} 58. Rb4 {[%emt 0:00:39]} Ke5 {[%emt 0:00:00]} 59. Ra4 {[%emt 0:01:50]} Bb6 {[%emt 0:00:00]} 60. Ra8 {[%emt 0:00:57]} Bd4 {[%emt 0:00:00]} 61. Kf1 {[%emt 0:00:27]} Bb6 {[%emt 0:00:00]} 62. Kg2 {[%emt 0:01:09]} Bd4 {[%emt 0:00:00]} 63. Ra5+ {[%emt 0:00:40]} Ke6 {[%emt 0:00:00]} 64. Ra4 {[%emt 0:00:04]} Ke5 {[%emt 0:00:00]} 65. Ra2 {[%emt 0:04:38]} Kf5 {[%emt 0:00:00]} 66. Re2 {[%emt 0:00:47]} Bc5 {[%emt 0:00:00]} 67. Kf1 {[%emt 0:00:53]} Bd4 {[%emt 0:00:00]} 68. Ra2 {[%emt 0:00:56]} Bb6 {[%emt 0:00:00]} 69. Ke2 {[%emt 0:00:22]} Bd4 70. Ra8 {[%emt 0:00:19]} Bb6 {[%emt 0:00:00]} 71. Rb8 {[%emt 0:00:54]} Bd4 {[%emt 0:00:00]} 72. Rb4 {[%emt 0:00:24]} Ba7 {[%emt 0:00:05]} 73. Rb7 {[%emt 0:00:54]} Bd4 {[%emt 0:00:07]} 74. Rb5+ {[%emt 0:00:21]} Ke6 {[%emt 0:00:04]} 75. Rb4 {[%emt 0:00:06]} Ke5 {[%emt 0:01:54]} 76. f3 {[%emt 0:00:41]} exf3+ {[%emt 0:00:07]} 77. Kxf3 {[%emt 0:00:05]} Bc3 {[%emt 0:00:48]} 78. Re4+ {[%emt 0:00:13]} Kf5 {[%emt 0:00:23]} 79. Rc4 {[%emt 0:00:18]} Be5 {[%emt 0:00:19]} 80. Rc5 {[%emt 0:00:24]} Ke6 {[%emt 0:00:18]} 81. Ra5 {[%emt 0:00:08]} Bc3 {[%emt 0:00:21]} 82. Ra3 {[%emt 0:00:13]} Bb2 {[%emt 0:00:18]} 83. Rb3 {[%emt 0:00:10]} Be5 {[%emt 0:00:22]} 84. Rb6+ {[%emt 0:00:43]} Kf5 {[%emt 0:01:21]} 85. Rc6 {[%emt 0:00:06]} Bb8 {[%emt 0:00:15]} 86. Rc4 {[%emt 0:00:33]} Bd6 {[%emt 0:00:07]} 87. Ra4 {[%emt 0:00:47]} Bc7 {[%emt 0:00:02]} 88. Rb4 {[%emt 0:00:05]} Bd6 {[%emt 0:00:03]} 89. Rb5+ {[%emt 0:00:04]} Be5 {[%emt 0:00:02]} 90. Ra5 {[%emt 0:00:14]} Ke6 {[%emt 0:00:01]} 91. g4 {[%emt 0:00:10]} hxg4+ {[%emt 0:00:27]} 92. Kxg4 {[%emt 0:00:02]} Kf7 {[%emt 0:00:33]} 93. Ra6 {[%emt 0:00:19]} Kg7 {[%emt 0:01:17]} 94. Kf3 {[%emt 0:00:05]} Kh6 {[%emt 0:00:14]} 95. Ra7 {[%emt 0:00:20]} Bd4 {[%emt 0:00:08]} 96. Rd7 {[%emt 0:00:05]} Be5 {[%emt 0:00:42]} 97. Rd8 {[%emt 0:00:12]} Bb2 {[%emt 0:00:24]} 98. Kg4 {[%emt 0:00:04]} Be5 {[%emt 0:00:06]} 99. Re8 {[%emt 0:00:10]} Bd4 {[%emt 0:00:27]} 100. Rh8+ {[%emt 0:00:04]} Kg7 {[%emt 0:00:11]} 101. Rd8 {[%emt 0:00:02]} Be5 {[%emt 0:00:28]} 102. Rd1 {[%emt 0:00:06]} Kh6 {[%emt 0:00:05]} 103. Rh1 {[%emt 0:00:06]} Bd6 {[%emt 0:00:15]} 104. Rd1 {[%emt 0:00:24]} Be5 {[%emt 0:00:24]} 105. Rd7 {[%emt 0:00:05]} 1/2-1/2

[Event "WYCC U18 Open 2019"]
[Site "Mumbai"]
[Date "2019.10.07"]
[Round "7.13"]
[White "Gaurav Rajesh Zagade"]
[Black "Raghunandan, Kaumandur Srihari"]
[Result "1/2-1/2"]
[ECO "A04"]
[WhiteElo "2053"]
[BlackElo "2449"]
[Annotator "ChessBase"]
[PlyCount "158"]
[EventDate "2019.10.02"]
[EventType "swiss"]
[EventCountry "IND"]
[SourceTitle "playchess.com"]
[Source "ChessBase"]
[SourceQuality "1"]
[TimeControl "40/5400+30:1800+30"]

1. Nf3 g6 2. d4 Bg7 3. c4 d6 4. g3 c5 5. Bg2 Nc6 6. d5 Na5 7. Qc2 Nf6 8. Nc3 O-O 9. Nd2 e5 10. O-O Ne8 11. a3 b6 12. b4 Nb7 13. e4 f5 14. exf5 gxf5 15. Bb2 Bd7 16. f4 e4 17. Nd1 Nf6 18. b5 Qe8 19. Ne3 Qg6 20. Rfe1 Kf7 21. Kf2 Rg8 22. a4 a6 23. Bc3 a5 24. Rg1 Ke7 25. Qb2 Raf8 26. Bf1 Qh6 27. Rh1 Nh5 28. Ng2 e3+ 29. Nxe3 Bxc3 30. Qxc3 Nxg3 31. hxg3 Qxh1 32. Nf3 Qh6 33. Nh4 Kd8 34. Be2 Kc7 35. Rh1 Nd8 36. Bf3 Qf6 37. Qxf6 Rxf6 38. Be2 Nf7 39. Bd3 Nh6 40. Bc2 Kd8 41. Re1 Rg7 42. Kf3 Re7 43. Rh1 Ke8 44. Bb1 Kf8 45. Bc2 Kg7 46. Bb1 Re8 47. Bc2 Ref8 48. Bb1 Be8 49. Nhg2 Bg6 50. Bc2 R6f7 51. Bb1 Rf6 52. Bc2 R6f7 53. Bb1 Re8 54. Bc2 Ng4 55. Bd3 h6 56. Rh4 Nxe3 57. Nxe3 Rfe7 58. Ng2 h5 59. Rh1 Kf6 60. Kf2 Kg7 61. Rh4 Kf7 62. Rh1 Kf6 63. Rh4 Kf7 64. Rh1 Kg7 65. Rh4 Kf6 66. Rh1 Bf7 67. Rh4 Rg8 68. Rh3 Be8 69. Ne3 Bg6 70. Ng2 Ree8 71. Rh4 Rg7 72. Ne3 Rge7 73. Ng2 Rg7 74. Ne3 Rge7 75. Ng2 Rg7 76. Ne3 Rge7 77. Ng2 Rg8 78. Ne3 Rge8 79. Ng2 Rg7 1/2-1/2

[Event "WYCC U18 Open 2019"]
[Site "Mumbai"]
[Date "2019.10.07"]
[Round "7.15"]
[White "Bykov, Oleg"]
[Black "Theekshana, H G Denuwan"]
[Result "1-0"]
[ECO "A41"]
[WhiteElo "2370"]
[BlackElo "1886"]
[Annotator "ChessBase"]
[PlyCount "63"]
[EventDate "2019.10.02"]
[EventType "swiss"]
[EventCountry "IND"]
[SourceTitle "playchess.com"]
[Source "ChessBase"]
[SourceQuality "1"]
[TimeControl "40/5400+30:1800+30"]

1. d4 {[%emt 0:00:00]} d6 {[%emt 0:01:22]} 2. Nf3 {[%emt 0:00:00]} g6 {[%emt 0:00:04]} 3. c4 {[%emt 0:00:00]} Bg7 {[%emt 0:00:03]} 4. Nc3 {[%emt 0:00:00]} Nd7 {[%emt 0:00:48]} 5. e4 {[%emt 0:00:14]} c5 {[%emt 0:00:03]} 6. d5 {[%emt 0:08:53]} Ngf6 {[%emt 0:01:03]} 7. Be2 {[%emt 0:00:32]} O-O {[%emt 0:00:35]} 8. O-O {[%emt 0:00:06]} a6 {[%emt 0:00:04]} 9. Bg5 {[%emt 0:03:13]} h6 {[%emt 0:00:12]} 10. Bf4 {[%emt 0:02:49]} g5 {[%emt 0:02:31]} 11. Bc1 {[%emt 0:03:21]} Re8 {[%emt 0:13:10]} 12. Ne1 {[%emt 0:09:09]} e5 {[%emt 0:05:45]} 13. dxe6 {[%emt 0:05:53]} Rxe6 {[%emt 0:05:37]} 14. f4 {[%emt 0:07:11]} Nxe4 {[%emt 0:01:18]} 15. Nxe4 {[%emt 0:00:18]} Rxe4 {[%emt 0:00:03]} 16. Bd3 {[%emt 0:01:20]} Re6 {[%emt 0:06:09]} 17. fxg5 {[%emt 0:00:40]} hxg5 {[%emt 0:02:38]} 18. Qh5 {[%emt 0:01:54]} Nf6 {[%emt 0:02:46]} 19. Qxg5 {[%emt 0:01:04]} b5 {[%emt 0:04:47]} 20. b3 {[%emt 0:16:09]} d5 {[%emt 0:02:38]} 21. Bb2 {[%emt 0:02:08]} bxc4 {[%emt 0:02:16]} 22. bxc4 {[%emt 0:00:34]} Bb7 {[%emt 0:01:05]} 23. Rb1 {[%emt 0:04:51]} d4 {[%emt 0:02:53]} 24. Qxc5 {[%emt 0:04:41]} Ne4 {[%emt 0:01:10]} 25. Qh5 {[%emt 0:00:32]} Qc7 {[%emt 0:01:14]} 26. Bc1 {[%emt 0:02:17]} Rg6 {[%emt 0:13:48]} 27. Nf3 {[%emt 0:04:53]} Re8 {[%emt 0:03:40]} 28. Ng5 {[%emt 0:03:00]} Nf6 {[%emt 0:09:51]} 29. Rxf6 {[%emt 0:02:36]} Bxf6 {[%emt 0:12:20]} 30. Qh7+ {[%emt 0:00:14]} Kf8 {[%emt 0:00:01]} 31. Ba3+ {[%emt 0:00:07]} Re7 {[%emt 0:00:33]} 32. Qxf7# {[%emt 0:00:10]} 1-0

[Event "WYCC U18 Open 2019"]
[Site "Mumbai"]
[Date "2019.10.09"]
[Round "8.1"]
[White "Gholami, Aryan"]
[Black "Mitrabha, Guha"]
[Result "1/2-1/2"]
[ECO "A05"]
[WhiteElo "2554"]
[BlackElo "2434"]
[Annotator "ChessBase"]
[PlyCount "76"]
[EventDate "2019.10.02"]
[EventType "swiss"]
[EventCountry "IND"]
[SourceTitle "playchess.com"]
[Source "ChessBase"]
[SourceQuality "1"]
[TimeControl "40/5400+30:1800+30"]

1. Nf3 {[%emt 0:00:00]} Nf6 {[%emt 0:07:17]} 2. g3 {[%emt 0:00:00]} b6 {[%emt 0:00:04]} 3. Bg2 {[%emt 0:00:00]} Bb7 {[%emt 0:00:04]} 4. O-O {[%emt 0:00:11]} c5 {[%emt 0:00:06]} 5. c4 {[%emt 0:01:42]} g6 {[%emt 0:00:06]} 6. b3 {[%emt 0:00:34]} Bg7 {[%emt 0:00:06]} 7. Bb2 {[%emt 0:00:06]} d6 {[%emt 0:00:08]} 8. d4 {[%emt 0:01:12]} cxd4 {[%emt 0:00:06]} 9. Qxd4 {[%emt 0:00:14]} Nbd7 {[%emt 0:00:14]} 10. Nc3 {[%emt 0:03:36]} O-O {[%emt 0:00:16]} 11. Nd5 {[%emt 0:02:01]} Rc8 {[%emt 0:05:27]} 12. Rac1 {[%emt 0:08:12]} Kh8 {[%emt 0:10:25]} 13. Ng5 {[%emt 0:03:41]} h6 {[%emt 0:11:28]} 14. Ne4 {[%emt 0:05:26]} e5 {[%emt 0:11:33]} 15. Qd2 {[%emt 0:00:12]} Bxd5 {[%emt 0:00:11]} 16. cxd5 {[%emt 0:01:37]} Nxe4 {[%emt 0:00:08]} 17. Bxe4 {[%emt 0:00:06]} Nc5 {[%emt 0:00:25]} 18. Bg2 {[%emt 0:00:09]} a5 {[%emt 0:00:31]} 19. e4 {[%emt 0:08:51]} Rc7 {[%emt 0:03:43]} 20. f4 {[%emt 0:06:45]} Kh7 {[%emt 0:04:34]} 21. fxe5 {[%emt 0:20:38]} Bxe5 {[%emt 0:00:44]} 22. Bxe5 {[%emt 0:00:06]} dxe5 {[%emt 0:00:03]} 23. Qe2 {[%emt 0:00:23]} Kg7 {[%emt 0:00:35]} 24. Qb5 {[%emt 0:01:15]} Qd6 {[%emt 0:00:14]} 25. a3 {[%emt 0:05:03]} Rfc8 {[%emt 0:11:39]} 26. Bh3 {[%emt 0:00:33]} Nd7 {[%emt 0:00:26]} 27. Rxc7 {[%emt 0:08:01]} Rxc7 {[%emt 0:00:03]} 28. Bxd7 {[%emt 0:00:08]} Rxd7 {[%emt 0:00:02]} 29. Rc1 {[%emt 0:01:47]} Qxa3 {[%emt 0:00:05]} 30. Rc8 {[%emt 0:00:04]} Qa1+ {[%emt 0:00:02]} 31. Kg2 {[%emt 0:01:25]} Qb2+ {[%emt 0:00:02]} 32. Kh3 {[%emt 0:01:19]} Qf2 {[%emt 0:00:05]} 33. Qxd7 {[%emt 0:01:48]} Qf1+ {[%emt 0:00:03]} 34. Kh4 {[%emt 0:01:59]} Qf6+ {[%emt 0:00:10]} 35. Kh3 {[%emt 0:00:06]} Qf1+ {[%emt 0:00:04]} 36. Kh4 {[%emt 0:00:04]} Qf6+ {[%emt 0:00:04]} 37. Kh3 {[%emt 0:00:04]} Qf1+ {[%emt 0:00:02]} 38. Kh4 {[%emt 0:00:05]} Qf6+ {[%emt 0:00:05]} 1/2-1/2

[Event "WYCC U18 Open 2019"]
[Site "Mumbai"]
[Date "2019.10.09"]
[Round "8.4"]
[White "Gazik, Viktor"]
[Black "Davtyan, Artur"]
[Result "1/2-1/2"]
[ECO "D31"]
[WhiteElo "2546"]
[BlackElo "2418"]
[Annotator "ChessBase"]
[PlyCount "101"]
[EventDate "2019.10.02"]
[EventType "swiss"]
[EventCountry "IND"]
[SourceTitle "playchess.com"]
[Source "ChessBase"]
[SourceQuality "1"]
[TimeControl "40/5400+30:1800+30"]

1. d4 {[%emt 0:00:00]} d5 {[%emt 0:00:00]} 2. c4 {[%emt 0:00:00]} e6 {[%emt 0:01:09]} 3. Nc3 {[%emt 0:00:00]} Be7 {[%emt 0:00:02]} 4. cxd5 {[%emt 0:00:00]} exd5 {[%emt 0:00:03]} 5. Bf4 {[%emt 0:00:11]} c6 {[%emt 0:00:04]} 6. e3 {[%emt 0:00:08]} Bf5 {[%emt 0:00:02]} 7. Nge2 {[%emt 0:00:09]} Nd7 {[%emt 0:00:11]} 8. h4 {[%emt 0:00:05]} Qb6 {[%emt 0:10:35]} 9. Qd2 {[%emt 0:09:38]} h5 {[%emt 0:00:25]} 10. Ng3 {[%emt 0:02:49]} Bg6 {[%emt 0:05:16]} 11. Bd3 {[%emt 0:12:51]} Bxd3 {[%emt 0:00:21]} 12. Qxd3 {[%emt 0:00:06]} g6 {[%emt 0:00:04]} 13. e4 {[%emt 0:04:18]} dxe4 {[%emt 0:17:39]} 14. Ngxe4 {[%emt 0:06:10]} Ngf6 {[%emt 0:05:16]} 15. Nd6+ {[%emt 0:05:49]} Kf8 {[%emt 0:05:55]} 16. O-O {[%emt 0:16:02]} Kg7 {[%emt 0:03:50]} 17. Qc4 {[%emt 0:08:30]} Bxd6 {[%emt 0:02:39]} 18. Bxd6 {[%emt 0:00:06]} Rhe8 {[%emt 0:00:02]} 19. Rad1 {[%emt 0:02:59]} Re6 {[%emt 0:04:05]} 20. Bg3 {[%emt 0:03:32]} Qxb2 {[%emt 0:10:48]} 21. Rb1 {[%emt 0:02:59]} Qc2 {[%emt 0:02:38]} 22. Rxb7 {[%emt 0:03:22]} Rae8 {[%emt 0:04:44]} 23. Rbb1 {[%emt 0:12:42]} Kg8 {[%emt 0:04:59]} 24. Rbc1 {[%emt 0:01:57]} Qf5 {[%emt 0:00:13]} 25. Qa6 {[%emt 0:01:04]} g5 {[%emt 0:05:18]} 26. Qxa7 {[%emt 0:02:30]} Qg4 {[%emt 0:00:22]} 27. hxg5 {[%emt 0:00:58]} h4 {[%emt 0:06:55]} 28. Bxh4 {[%emt 0:03:07]} Qxh4 {[%emt 0:03:15]} 29. gxf6 {[%emt 0:00:01]} Nxf6 {[%emt 0:00:19]} 30. Qc7 {[%emt 0:00:49]} Qxd4 {[%emt 0:05:11]} 31. Qg3+ {[%emt 0:01:10]} Ng4 {[%emt 0:00:02]} 32. Rcd1 {[%emt 0:01:01]} Qg7 {[%emt 0:00:00]} 33. Rd3 {[%emt 0:00:53]} Rg6 {[%emt 0:00:11]} 34. Qf4 {[%emt 0:00:30]} Rf6 {[%emt 0:02:57]} 35. Qd4 {[%emt 0:00:22]} Nxf2 {[%emt 0:00:19]} 36. Rf3 {[%emt 0:00:40]} Rxf3 {[%emt 0:01:37]} 37. Qxg7+ {[%emt 0:00:08]} Kxg7 {[%emt 0:00:04]} 38. gxf3 {[%emt 0:00:07]} Nh3+ {[%emt 0:00:52]} 39. Kh2 {[%emt 0:00:16]} Nf4 {[%emt 0:00:00]} 40. Ne4 {[%emt 0:00:52]} Ra8 {[%emt 0:00:36]} 41. Kg3 {[%emt 0:11:42]} Ne2+ {[%emt 0:00:13]} 42. Kf2 {[%emt 0:00:26]} Rxa2 {[%emt 0:00:11]} 43. Ke3 {[%emt 0:00:06]} f5 {[%emt 0:00:27]} 44. Rf2 {[%emt 0:01:33]} f4+ {[%emt 0:05:52]} 45. Kd3 {[%emt 0:00:19]} Nc1+ {[%emt 0:00:10]} 46. Kc4 {[%emt 0:02:25]} Rxf2 {[%emt 0:01:14]} 47. Nxf2 {[%emt 0:00:05]} Kf6 {[%emt 0:00:03]} 48. Nh3 {[%emt 0:00:10]} Ke5 {[%emt 0:00:05]} 49. Nxf4 {[%emt 0:00:08]} Kxf4 {[%emt 0:00:04]} 50. Kc5 {[%emt 0:00:04]} Kxf3 {[%emt 0:00:04]} 51. Kxc6 1/2-1/2

[Event "WYCC U18 Open 2019"]
[Site "Mumbai"]
[Date "2019.10.09"]
[Round "8.5"]
[White "Sydoryka, Vladyslav"]
[Black "Rahul Srivatshav P"]
[Result "1-0"]
[ECO "A15"]
[WhiteElo "2247"]
[BlackElo "2460"]
[Annotator "ChessBase"]
[PlyCount "117"]
[EventDate "2019.10.02"]
[EventType "swiss"]
[EventCountry "IND"]
[SourceTitle "playchess.com"]
[Source "ChessBase"]
[SourceQuality "1"]
[TimeControl "40/5400+30:1800+30"]

1. c4 {[%emt 0:00:00]} Nf6 {[%emt 0:00:28]} 2. g3 {[%emt 0:00:00]} g6 {[%emt 0:00:06]} 3. Bg2 {[%emt 0:00:00]} Bg7 {[%emt 0:00:05]} 4. Nc3 {[%emt 0:00:00]} O-O {[%emt 0:00:07]} 5. d3 {[%emt 0:00:00]} d6 {[%emt 0:00:24]} 6. Nf3 {[%emt 0:00:00]} e5 {[%emt 0:00:05]} 7. O-O {[%emt 0:00:01]} c6 {[%emt 0:00:01]} 8. Rb1 {[%emt 0:13:31]} Re8 {[%emt 0:00:09]} 9. Ne1 {[%emt 0:05:02]} h6 {[%emt 0:11:29]} 10. e4 {[%emt 0:02:37]} a6 {[%emt 0:02:09]} 11. a4 {[%emt 0:15:47]} a5 {[%emt 0:01:36]} 12. h3 {[%emt 0:00:24]} Na6 {[%emt 0:00:05]} 13. Nc2 {[%emt 0:00:52]} Nd7 {[%emt 0:09:34]} 14. Kh2 {[%emt 0:02:11]} Ndc5 {[%emt 0:04:45]} 15. f4 {[%emt 0:02:25]} Nb4 {[%emt 0:04:49]} 16. Ne1 {[%emt 0:09:23]} f5 {[%emt 0:03:20]} 17. Be3 {[%emt 0:03:05]} Qe7 {[%emt 0:03:14]} 18. Qd2 {[%emt 0:06:18]} exf4 {[%emt 0:08:17]} 19. Bxf4 {[%emt 0:01:54]} Kh7 {[%emt 0:00:41]} 20. Rd1 {[%emt 0:02:45]} Bd7 {[%emt 0:03:03]} 21. exf5 {[%emt 0:05:38]} Bxf5 {[%emt 0:24:56]} 22. d4 {[%emt 0:00:44]} Nb3 {[%emt 0:01:26]} 23. Qf2 {[%emt 0:00:05]} h5 {[%emt 0:05:05]} 24. h4 {[%emt 0:09:49]} Bf6 {[%emt 0:06:30]} 25. d5 {[%emt 0:09:30]} Rad8 {[%emt 0:02:25]} 26. Qb6 {[%emt 0:05:54]} Qg7 {[%emt 0:04:25]} 27. Nf3 {[%emt 0:00:51]} Kh8 {[%emt 0:03:00]} 28. Ng5 {[%emt 0:03:47]} Bd4 {[%emt 0:00:48]} 29. Rxd4 {[%emt 0:00:01]} Nxd4 {[%emt 0:00:04]} 30. Nce4 {[%emt 0:01:40]} cxd5 {[%emt 0:01:23]} 31. Nxd6 {[%emt 0:00:20]} Rxd6 {[%emt 0:00:12]} 32. Qxd6 {[%emt 0:00:01]} Nd3 {[%emt 0:00:43]} 33. Bd2 {[%emt 0:01:03]} Ne2 {[%emt 0:00:29]} 34. Bxd5 {[%emt 0:00:47]} Ne5 {[%emt 0:00:07]} 35. Bxa5 {[%emt 0:00:32]} Ng4+ {[%emt 0:00:05]} 36. Kh1 {[%emt 0:00:07]} Qxb2 {[%emt 0:00:45]} 37. Bg2 {[%emt 0:00:51]} Qb3 {[%emt 0:00:40]} 38. Be1 {[%emt 0:00:19]} Qxc4 {[%emt 0:00:19]} 39. a5 {[%emt 0:00:44]} Kg7 {[%emt 0:00:43]} 40. Rxf5 {[%emt 0:00:24]} gxf5 {[%emt 0:00:57]} 41. Qd7+ {[%emt 0:30:10]} Kf6 {[%emt 0:30:16]} 42. Qxe8 {[%emt 0:00:37]} f4 {[%emt 0:00:00]} 43. Qf8+ {[%emt 0:00:00]} Ke5 {[%emt 0:00:00]} 44. Qe7+ {[%emt 0:00:00]} Kd4 {[%emt 0:00:00]} 45. Nf3+ {[%emt 0:00:00]} Kd3 {[%emt 0:00:00]} 46. Qd6+ {[%emt 0:00:00]} Kc2 {[%emt 0:00:00]} 47. Qd2+ {[%emt 0:00:00]} Kb1 {[%emt 0:00:00]} 48. Qd1+ {[%emt 0:00:00]} Kb2 {[%emt 0:00:00]} 49. Bf1 {[%emt 0:00:00]} Nxg3+ {[%emt 0:00:00]} 50. Bxg3 {[%emt 0:00:00]} fxg3 {[%emt 0:00:00]} 51. Bxc4 {[%emt 0:00:00]} Nf2+ {[%emt 0:00:00]} 52. Kg1 {[%emt 0:00:00]} Nxd1 {[%emt 0:00:00]} 53. Bd5 {[%emt 0:00:00]} Nc3 {[%emt 0:00:00]} 54. Bxb7 {[%emt 0:00:00]} Nb5 {[%emt 0:00:00]} 55. a6 {[%emt 0:00:00]} Kc3 {[%emt 0:00:00]} 56. Kg2 {[%emt 0:00:00]} Kd3 {[%emt 0:00:00]} 57. Kxg3 {[%emt 0:00:00]} Ke3 {[%emt 0:00:00]} 58. Bc6 {[%emt 0:00:00]} Na7 {[%emt 0:00:00]} 59. Be8 {[%emt 0:00:00]} 1-0

[Event "WYCC U18 Open 2019"]
[Site "Mumbai"]
[Date "2019.10.09"]
[Round "8.6"]
[White "Chylewski, Patryk"]
[Black "Zarubitski, Viachaslau"]
[Result "0-1"]
[ECO "A50"]
[WhiteElo "2348"]
[BlackElo "2435"]
[Annotator "ChessBase"]
[PlyCount "106"]
[EventDate "2019.10.02"]
[EventType "swiss"]
[EventCountry "IND"]
[SourceTitle "playchess.com"]
[Source "ChessBase"]
[SourceQuality "1"]
[TimeControl "40/5400+30:1800+30"]

1. d4 {[%emt 0:00:00]} Nf6 {[%emt 0:00:00]} 2. c4 {[%emt 0:00:00]} c6 {[%emt 0:00:00]} 3. Nc3 {[%emt 0:00:00]} d5 {[%emt 0:00:00]} 4. cxd5 {[%emt 0:00:00]} cxd5 {[%emt 0:00:01]} 5. Bf4 {[%emt 0:00:00]} Nc6 {[%emt 0:00:25]} 6. e3 {[%emt 0:00:01]} Bf5 {[%emt 0:01:09]} 7. Nf3 {[%emt 0:00:26]} a6 {[%emt 0:00:26]} 8. h3 {[%emt 0:03:28]} Qb6 {[%emt 0:11:18]} 9. Qb3 {[%emt 0:10:44]} Qxb3 {[%emt 0:01:18]} 10. axb3 {[%emt 0:00:05]} e6 {[%emt 0:03:11]} 11. Be2 {[%emt 0:05:37]} Bb4 {[%emt 0:08:21]} 12. Nd2 {[%emt 0:06:23]} Ke7 {[%emt 0:14:59]} 13. f3 {[%emt 0:03:38]} Bg6 {[%emt 0:05:10]} 14. Kf2 {[%emt 0:02:10]} Rac8 {[%emt 0:01:01]} 15. Rhc1 {[%emt 0:00:53]} Nd7 {[%emt 0:01:51]} 16. Nf1 {[%emt 0:04:32]} f6 {[%emt 0:04:18]} 17. Bg3 {[%emt 0:09:40]} Na5 {[%emt 0:12:12]} 18. Bd1 {[%emt 0:03:06]} Nc6 {[%emt 0:05:18]} 19. Be2 {[%emt 0:01:13]} Rhd8 {[%emt 0:03:50]} 20. Bh4 {[%emt 0:02:50]} Nb6 {[%emt 0:02:24]} 21. Na2 {[%emt 0:03:53]} Bd6 {[%emt 0:02:40]} 22. Bg3 {[%emt 0:02:58]} e5 {[%emt 0:02:12]} 23. dxe5 {[%emt 0:01:02]} Bxe5 {[%emt 0:00:26]} 24. Bxe5 {[%emt 0:01:11]} fxe5 {[%emt 0:00:17]} 25. b4 {[%emt 0:07:45]} Na7 {[%emt 0:07:16]} 26. f4 {[%emt 0:01:28]} Na4 {[%emt 0:02:10]} 27. b3 {[%emt 0:02:30]} Nb2 {[%emt 0:00:02]} 28. g4 {[%emt 0:08:03]} Nd3+ {[%emt 0:01:22]} 29. Bxd3 {[%emt 0:00:04]} Bxd3 {[%emt 0:00:02]} 30. Rxc8 {[%emt 0:02:22]} Rxc8 {[%emt 0:01:06]} 31. Rc1 {[%emt 0:00:05]} Rc2+ {[%emt 0:06:40]} 32. Rxc2 {[%emt 0:00:06]} Bxc2 {[%emt 0:00:01]} 33. Nd2 {[%emt 0:00:45]} exf4 {[%emt 0:00:54]} 34. exf4 {[%emt 0:00:04]} d4 {[%emt 0:00:25]} 35. Nf3 {[%emt 0:13:27]} Nc6 {[%emt 0:00:40]} 36. Nc1 {[%emt 0:00:07]} Kd6 {[%emt 0:00:38]} 37. Ke2 {[%emt 0:00:22]} Kd5 {[%emt 0:00:43]} 38. b5 {[%emt 0:02:41]} axb5 {[%emt 0:00:07]} 39. Kd2 {[%emt 0:02:03]} Ke4 {[%emt 0:03:30]} 40. Ne1 {[%emt 0:02:26]} Bb1 {[%emt 0:00:30]} 41. f5 {[%emt 0:06:16]} Ke5 {[%emt 0:14:53]} 42. Ned3+ {[%emt 0:07:12]} Kf6 {[%emt 0:02:29]} 43. Ne2 {[%emt 0:16:05]} Kg5 {[%emt 0:03:02]} 44. Ndf4 {[%emt 0:03:03]} Kh4 {[%emt 0:00:12]} 45. Ne6 {[%emt 0:01:13]} Kxh3 {[%emt 0:00:17]} 46. Nxg7 {[%emt 0:00:07]} Kxg4 {[%emt 0:00:26]} 47. f6 {[%emt 0:00:06]} Bg6 {[%emt 0:00:45]} 48. Ne6 {[%emt 0:00:05]} b4 {[%emt 0:07:29]} 49. N6xd4 {[%emt 0:01:39]} Nxd4 {[%emt 0:00:18]} 50. Nxd4 {[%emt 0:00:04]} Kg5 {[%emt 0:00:02]} 51. Nb5 {[%emt 0:01:01]} Kxf6 {[%emt 0:00:59]} 52. Nd6 {[%emt 0:00:09]} Bf7 {[%emt 0:01:49]} 53. Kc2 {[%emt 0:00:07]} Bd5 {[%emt 0:00:06]} 0-1